bitfinex/quotes_ETHUSD_20220111
["timestamp","ask_amount","ask_price","bid_price","bid_amount"]
[1641910335528,4.29914403,3117.5,3117.4,0.00284211]
[1641910335728,4.29914403,3117.5,3117.2,0.00397896]
[1641910335927,1.0,3117.4,3117.2,0.00397896]
[1641910336126,0.462,3117.3,3117.2,0.00397896]
[1641910336326,3.81700031,3117.6,3117.4,1.93556]
[1641910336528,3.25914365,3117.5,3117.4,1.93556]
[1641910336981,4.25914365,3117.5,3117.4,1.93556]
[1641910337578,5.06158365,3117.5,3117.4,1.93556]
[1641910337979,5.06158365,3117.5,3117.1,5.99035]
[1641910338181,1.0,3117.4,3117.1,5.99035]
[1641910338479,0.462,3117.3,3117.2,0.00397896]
[1641910339285,0.462,3117.3,3117.1,4.54932896]
[1641910340182,0.462,3117.3,3117.1,4.48532896]
[1641910340839,0.462,3117.3,3117.2,2.72454489]
[1641910342137,0.74225352,3117.3,3117.2,2.72454489]
[1641910344979,0.74225352,3117.3,3117.2,4.11883974]
[1641910344980,3.25554549,3117.3,3117.2,4.11883974]
[1641910345681,4.25554549,3117.3,3117.2,4.11883974]
[1641910346480,3.25554549,3117.3,3117.2,4.11883974]
[1641910347080,4.25554549,3117.3,3117.2,4.11883974]
[1641910348533,4.25554549,3117.3,3117.2,4.05483974]
[1641910349132,4.25554549,3117.3,3117.2,2.66054489]
[1641910351334,3.25554549,3117.3,3117.2,2.66054489]
[1641910351536,4.25554549,3117.3,3117.2,2.66054489]
[1641910352183,7.85016505,3117.3,3117.2,2.66054489]
[1641910352585,5.05799549,3117.3,3117.2,2.66054489]
[1641910353182,5.05799549,3117.3,3117.1,4.3857]
[1641910353385,1.0,3117.2,3117.1,4.3857]
[1641910353584,1.462,3117.2,3117.1,4.3857]
[1641910355938,0.462,3117.2,3117.1,4.3857]
[1641910356140,2.79354549,3117.3,3117.1,4.3857]
[1641910356336,2.79354549,3117.3,3117.1,4.54538]
[1641910356536,1.0,3117.2,3117.1,4.54538]
[1641910356737,1.0,3117.2,3117.1,1.60468]
[1641910358838,1.0,3117.2,3117.0,1.44154607]
[1641910359485,2.26449,3117.2,3116.8,0.89827617]
[1641910359688,5.050553,3117.2,3116.6,4.08412576]
[1641910359886,2.26449,3117.2,3116.9,0.00170527]
[1641910360487,2.26449,3117.2,3116.6,0.00341054]
[1641910360692,5.775,3116.9,3116.6,0.00341054]
[1641910360889,7.55275,3116.7,3116.6,0.00341054]
[1641910361092,8.01475,3116.7,3116.2,0.00568423]
[1641910361291,1.0,3116.6,3116.2,0.00568423]
[1641910361491,1.3,3116.6,3116.2,0.00568423]
[1641910361693,11.125,3116.3,3116.2,0.00568423]
[1641910361993,11.125,3116.3,3115.6,1.62900227]
[1641910361994,0.66177008,3116.0,3115.6,1.62900227]
[1641910362191,0.462,3115.9,3115.7,0.00284212]
[1641910362390,0.462,3115.9,3115.6,1.62900227]
[1641910362391,0.54198305,3115.9,3115.6,1.62900227]
[1641910362593,0.07998305,3115.8,3115.6,1.62900227]
[1641910362795,5.962,3115.7,3115.2,3.6726]
[1641910362992,0.80304,3115.4,3115.2,3.6726]
[1641910363252,0.462,3115.3,3115.1,1.62900227]
[1641910363734,0.462,3115.3,3115.2,0.00284212]
[1641910365341,0.462,3115.3,3115.0,1.34145925]
[1641910365538,0.462,3115.3,3115.0,0.14058947]
[1641910366739,0.462,3115.3,3115.0,0.07658947]
[1641910367189,0.462,3115.7,3115.0,0.07658947]
[1641910367383,1.1198925,3116.0,3115.0,0.37658947]
[1641910367584,0.13819997,3116.1,3115.2,1.60537]
[1641910367585,0.0022737,3115.6,3115.2,1.60537]
[1641910367785,0.60019997,3116.1,3115.6,0.80273]
[1641910367988,0.60019997,3116.1,3115.3,0.00170528]
[1641910368183,0.60019997,3116.1,3115.3,0.85572946]
[1641910368184,0.00227369,3116.0,3115.3,0.85572946]
[1641910368384,0.462,3115.9,3115.3,0.85402418]
[1641910368586,0.46370527,3115.9,3115.5,0.8028525]
[1641910368787,0.00113684,3115.8,3115.5,0.8028525]
[1641910368985,0.462,3115.7,3115.5,0.8028525]
[1641910369385,0.462,3115.7,3115.6,2.72553986]
[1641910371732,0.00113684,3115.8,3115.6,2.72553986]
[1641910371934,0.462,3115.7,3115.6,2.72553986]
[1641910374333,1.300276,3115.7,3115.6,2.72553986]
[1641910374881,1.300276,3115.7,3115.6,1.28053986]
[1641910375884,1.300276,3115.7,3115.6,1.21653986]
[1641910377084,2.300276,3115.7,3115.6,1.21653986]
[1641910380137,1.300276,3115.7,3115.6,1.21653986]
[1641910380738,0.462,3116.3,3115.7,2.95]
[1641910380942,0.462,3116.3,3116.0,2.18733179]
[1641910381142,0.46484212,3116.3,3115.7,1.60525]
[1641910381339,0.46484212,3116.3,3115.8,2.407876]
[1641910382583,0.46484212,3116.3,3115.8,3.19779268]
[1641910382785,0.46484212,3116.3,3115.8,1.605246]
[1641910383382,3.2648691,3116.3,3115.8,1.605246]
[1641910383586,1.0,3116.2,3115.8,1.605246]
[1641910383784,1.0,3116.2,3115.8,1.555246]
[1641910384083,0.00170527,3116.1,3115.8,1.555246]
[1641910384282,0.00170527,3116.1,3115.7,2.54390149]
[1641910384482,0.462,3116.3,3115.7,2.54390149]
[1641910384483,0.46313685,3116.0,3115.7,2.54390149]
[1641910384782,0.462,3115.9,3115.7,2.54390149]
[1641910384985,0.462,3115.9,3115.7,3.34668399]
[1641910386040,0.462,3115.9,3115.7,2.4080325]
[1641910386439,0.462,3115.9,3115.7,0.9630325]
[1641910387439,0.462,3115.9,3115.7,1.765815]
[1641910387639,0.462,3115.9,3115.7,0.9630325]
[1641910389141,0.462,3115.9,3115.7,0.8990325]
[1641910391594,1.26487,3115.9,3115.6,0.00113685]
[1641910391888,0.27974844,3115.7,3115.6,0.00113685]
[1641910392088,0.74174844,3115.7,3115.6,0.00113685]
[1641910392289,0.74174844,3115.7,3115.5,0.00170527]
[1641910393736,0.74174844,3115.7,3115.5,0.80454297]
[1641910394143,0.74174844,3115.7,3115.6,0.00113684]
[1641910395138,0.27974844,3115.7,3115.6,0.00113684]
[1641910396142,0.27974844,3115.7,3115.6,2.72666178]
[1641910396645,0.74174844,3115.7,3115.6,2.72666178]
[1641910396840,3.25655653,3115.7,3115.6,2.72666178]
[1641910397282,4.33653958,3115.7,3115.6,2.72666178]
[1641910397482,4.33653958,3115.7,3115.6,0.00113684]
[1641910397884,4.33653958,3115.7,3115.5,0.00170527]
[1641910398086,4.95,3115.6,3115.5,0.00170527]
[1641910398286,5.412,3115.6,3115.5,0.00170527]
[1641910398885,1.462,3115.6,3115.5,0.00170527]
[1641910400086,4.662,3115.6,3115.5,0.00170527]
[1641910401232,1.462,3115.6,3115.5,0.00170527]
[1641910401937,0.27974844,3115.7,3115.5,0.00170527]
[1641910402131,0.27974844,3115.7,3115.5,2.72570877]
[1641910402332,0.27974844,3115.7,3115.5,3.52099239]
[1641910402534,0.27974844,3115.7,3115.5,3.82099239]
[1641910402734,0.27974844,3115.7,3115.5,3.52099239]
[1641910402935,0.27974844,3115.7,3115.5,4.32374529]
[1641910403432,0.27974844,3115.7,3115.5,4.25974529]
[1641910403637,0.27974844,3115.7,3115.6,2.72570877]
[1641910404033,0.28088529,3115.7,3115.6,2.72570877]
[1641910406382,0.28088529,3115.7,3115.6,2.72916012]
[1641910411436,0.28088529,3115.7,3115.6,2.72570877]
[1641910411635,0.28088529,3115.7,3115.6,5.52954768]
[1641910411835,0.28088529,3115.7,3115.6,4.08454768]
[1641910412081,0.28088529,3115.7,3115.6,1.28070877]
[1641910412583,0.28088529,3115.7,3115.6,3.86554943]
[1641910412982,0.28088529,3115.7,3115.6,3.80154943]
[1641910413182,0.28088529,3115.7,3115.6,1.21670877]
[1641910413585,0.85118338,3116.2,3115.8,0.8027]
[1641910413586,0.83826594,3116.2,3115.8,0.8027]
[1641910413787,1.1198925,3117.0,3115.9,2.75597494]
[1641910413985,6.09,3117.4,3116.0,6.75]
[1641910414184,6.09,3117.4,3116.7,0.82223468]
[1641910414185,0.00454739,3116.9,3116.7,0.82223468]
[1641910414585,0.00397897,3116.8,3116.7,2.34505444]
[1641910414984,0.00682108,3116.8,3116.7,2.34505444]
[1641910415589,0.00682108,3116.8,3116.7,1.52281976]
[1641910415838,0.00682108,3116.8,3116.7,1.82281976]
[1641910416434,0.00682108,3116.8,3116.7,1.82626772]
[1641910416836,0.00682108,3116.8,3116.7,1.52626772]
[1641910417237,0.00682108,3116.8,3116.7,2.20531208]
[1641910417635,0.00682108,3116.8,3116.7,4.74764315]
[1641910418035,0.00682108,3116.8,3116.7,2.20531208]
[1641910418237,0.00682108,3116.8,3116.7,1.52626772]
[1641910418437,0.37231875,3116.8,3116.7,0.00344796]
[1641910420691,0.37231875,3116.8,3115.6,1.62900227]
[1641910420692,0.06213562,3116.7,3115.6,1.62900227]
[1641910420989,0.06213562,3116.7,3116.0,4.08775423]
[1641910420990,0.01293072,3116.1,3116.0,4.08775423]
[1641910421186,0.462,3116.1,3116.0,4.08775423]
[1641910421784,0.462,3116.1,3115.7,0.00227369]
[1641910421785,0.03797836,3116.0,3115.7,0.00227369]
[1641910422086,5.30287,3115.8,3115.6,0.00284211]
[1641910422285,3.162,3115.7,3115.6,0.00284211]
[1641910422886,4.162,3115.7,3115.6,0.00284211]
[1641910423733,4.162,3115.7,3115.0,1.2247]
[1641910423734,3.85,3115.6,3115.0,0.80293]
[1641910423934,1.26493,3115.5,3115.3,0.00170528]
[1641910424936,1.26493,3115.5,3115.1,1.12643011]
[1641910424937,1.26493,3115.5,3115.1,1.06413539]
[1641910427613,1.26493,3115.5,3115.0,0.80293]
[1641910427811,1.26493,3115.5,3114.7,1.60587]
[1641910427812,1.17580994,3115.2,3114.7,1.60587]
[1641910428115,1.17580994,3115.2,3115.1,0.00113684]
[1641910428310,0.37279994,3115.2,3115.1,0.00113684]
[1641910430113,0.37279994,3115.2,3114.8,0.00284211]
[1641910430750,0.462,3115.1,3114.6,1.42489704]
[1641910430934,0.462,3115.1,3114.6,2.1017243]
[1641910431134,0.462,3115.1,3114.7,0.00341054]
[1641910432435,0.8031,3114.9,3114.7,0.00341054]
[1641910432636,0.462,3114.9,3114.7,0.00341054]
[1641910432836,0.83479994,3115.3,3114.7,0.00341054]
[1641910433037,0.462,3115.2,3114.7,0.00341054]
[1641910433343,1.60597,3115.6,3114.7,2.72649885]
[1641910433344,0.462,3115.1,3114.7,2.72649885]
[1641910433637,0.80316,3114.9,3114.8,0.00284211]
[1641910433835,1.56516,3114.9,3114.8,0.00284211]
[1641910434036,1.54396,3114.9,3114.8,0.00284211]
[1641910434787,5.89396,3114.9,3114.6,0.00397896]
[1641910434988,5.97394305,3114.9,3114.6,0.00397896]
[1641910435183,1.0,3114.8,3114.6,0.00397896]
[1641910435388,0.07998305,3115.3,3114.9,6.8]
[1641910435587,0.15682959,3115.7,3115.2,0.0125273]
[1641910435785,0.80271,3117.0,3115.6,0.01243068]
[1641910436091,0.00682108,3116.7,3115.6,0.01243068]
[1641910436288,0.92096317,3116.6,3115.6,0.01243068]
[1641910436487,2.39112398,3116.5,3115.3,2.7276357]
[1641910436686,18.9156,3116.4,3115.3,2.7276357]
[1641910436886,0.1056,3116.2,3115.7,2.72649885]
[1641910437085,0.1056,3116.0,3115.7,2.72649885]
[1641910437285,5.35855,3115.8,3115.7,2.72649885]
[1641910437491,6.12055,3115.8,3115.7,2.72649885]
[1641910437687,8.03473273,3115.8,3115.7,2.72649885]
[1641910437885,8.03473273,3115.8,3115.3,0.00113685]
[1641910438089,0.1056,3115.6,3115.3,0.00113685]
[1641910438533,5.9056,3115.4,3115.3,0.00113685]
[1641910438738,5.9056,3115.4,3115.1,0.00227369]
[1641910438934,5.9056,3115.2,3115.1,2.72653616]
[1641910439136,6.9056,3115.2,3115.1,2.72653616]
[1641910439334,1.1056,3115.2,3115.1,2.72880985]
[1641910439534,2.8056,3115.2,3115.1,2.72880985]
[1641910439737,2.8056,3115.2,3115.1,0.00227369]
[1641910440137,3.5556,3115.0,3114.9,0.00341054]
[1641910440336,4.3587,3115.0,3114.9,0.00341054]
[1641910440538,5.3587,3115.0,3114.9,0.00341054]
[1641910440736,5.3587,3115.0,3114.5,0.00568423]
[1641910440938,0.1056,3114.7,3114.5,2.73243694]
[1641910441244,0.1056,3114.7,3114.6,0.00511581]
[1641910441438,0.90876,3114.7,3114.6,0.00511581]
[1641910441643,0.90876,3114.7,3114.5,0.00568423]
[1641910441838,0.1056,3114.6,3114.5,0.00568423]
[1641910442487,0.1056,3114.7,3114.2,0.89761606]
[1641910442885,0.1056,3114.7,3114.3,0.00682108]
[1641910443286,0.1056,3114.7,3114.3,1.5494821]
[1641910443686,0.1056,3114.7,3114.4,0.00625266]
[1641910445189,0.1056,3114.7,3114.4,0.13716032]
[1641910445390,0.1056,3114.7,3114.4,0.13090766]
[1641910445590,0.1056,3114.7,3114.5,0.00568423]
[1641910445839,0.1056,3114.7,3114.5,0.13659189]
[1641910446233,0.1056,3114.7,3114.6,0.00511581]
[1641910446632,0.1056,3114.7,3114.6,0.13602347]
[1641910447432,0.1056,3114.7,3114.0,3.46663099]
[1641910447634,0.1056,3114.7,3114.2,1.91183547]
[1641910447832,0.1056,3114.7,3114.1,0.8030622]
[1641910447833,0.1056,3114.7,3114.1,0.80590432]
[1641910448235,0.1056,3114.7,3114.2,0.00227369]
[1641910448636,0.1056,3114.7,3114.1,0.74133589]
[1641910449042,0.00227369,3114.6,3114.0,3.31633388]
[1641910449238,0.00227369,3114.6,3114.0,2.48060713]
[1641910449488,0.00170527,3114.5,3114.0,2.48060713]
[1641910449887,0.00113684,3114.4,3114.0,2.48060713]
[1641910450288,0.1056,3114.6,3114.0,2.48060713]
[1641910450289,0.00170527,3114.5,3114.0,2.48060713]
[1641910450589,0.00113684,3114.4,3114.0,2.48060713]
[1641910450992,0.00170527,3114.5,3114.0,2.48060713]
[1641910451388,0.00113684,3114.4,3114.0,2.48060713]
[1641910451894,0.00170527,3114.5,3114.0,1.02555702]
[1641910452189,0.00113684,3114.4,3114.0,1.02555702]
[1641910452591,0.00170527,3114.5,3114.0,1.02555702]
[1641910452991,0.00113684,3114.4,3114.0,1.02555702]
[1641910453244,0.00113684,3114.4,3114.0,4.93556477]
[1641910453437,0.00170527,3114.5,3114.0,2.50910404]
[1641910453639,0.00170527,3114.5,3114.1,2.44132661]
[1641910453839,0.00113684,3114.4,3114.1,2.44132661]
[1641910454242,0.00170527,3114.5,3114.1,2.44132661]
[1641910454639,0.00113684,3114.4,3114.1,2.44132661]
[1641910455038,0.00170527,3114.5,3114.1,2.44132661]
[1641910455439,0.00113684,3114.4,3114.1,2.44132661]
[1641910455838,0.00227369,3114.6,3114.1,2.44132661]
[1641910456039,0.00227369,3114.6,3114.5,0.8636053]
[1641910456238,0.1056,3114.7,3114.5,0.8636053]
[1641910457088,0.1056,3114.7,3114.6,6.18964059]
[1641910457388,0.10844211,3114.7,3114.6,8.91617405]
[1641910457589,0.10844211,3114.7,3114.6,8.91174486]
[1641910457786,0.10844211,3114.7,3114.6,3.86056165]
[1641910457986,0.10844211,3114.7,3114.6,2.72653346]
[1641910462436,0.10844211,3114.7,3114.6,2.11948697]
[1641910463038,0.10844211,3114.7,3114.6,4.84602043]
[1641910463643,0.10844211,3114.7,3114.6,2.11948697]
[1641910464338,0.10844211,3114.7,3114.6,4.84602043]
[1641910464593,0.00284211,3114.7,3114.6,4.84602043]
[1641910464989,0.00284211,3114.7,3114.6,7.6037208]
[1641910465189,0.00284211,3114.7,3114.6,23.95602043]
[1641910466185,0.1056,3115.3,3115.2,1.36782612]
[1641910466589,6.09,3116.2,3115.2,1.36782612]
[1641910466590,1.733931,3117.6,3115.4,7.35]
[1641910466790,8.02821,3118.1,3115.4,7.35]
[1641910467195,2.5152746,3138.1,3115.4,7.35]
[1641910467196,0.01248542,3118.9,3116.9,0.01236248]
[1641910467396,4.34153883,3120.1,3118.0,0.61576013]
[1641910467592,0.01284582,3120.5,3118.0,0.61576013]
[1641910467593,0.01284582,3120.5,3118.3,0.6]
[1641910467789,0.01284582,3120.5,3118.5,0.01248976]
[1641910467994,0.128403,3120.8,3118.6,0.90019997]
[1641910468256,0.128403,3120.8,3119.3,0.80156]
[1641910468442,0.03410541,3120.7,3119.8,0.8015]
[1641910468639,0.03410541,3120.7,3120.4,1.19796943]
[1641910468839,2.98727896,3121.5,3120.4,1.19796943]
[1641910469240,0.00454739,3121.4,3120.4,1.19796943]
[1641910469441,0.00454739,3121.4,3120.3,0.462]
[1641910469442,0.78176478,3121.4,3120.3,0.462]
[1641910469640,0.78176478,3121.4,3118.8,21.63968]
[1641910469641,0.01271229,3120.7,3119.5,0.462]
[1641910469846,0.01271229,3120.7,3118.9,2.59047934]
[1641910469847,0.462,3120.6,3120.4,0.00113685]
[1641910470242,0.462,3120.6,3119.5,2.596732]
[1641910470442,0.462,3120.6,3119.8,1.19670812]
[1641910470640,0.462,3120.6,3119.6,0.00568424]
[1641910470841,0.462,3120.6,3119.9,0.00397897]
[1641910471140,6.1491,3120.5,3119.3,0.00738951]
[1641910471341,0.462,3120.4,3119.5,1.6031744]
[1641910471541,0.462,3120.4,3119.3,0.00738951]
[1641910471742,0.462,3120.4,3119.6,1.24910859]
[1641910471982,1.462,3120.4,3119.6,1.24342435]
[1641910472186,1.0,3120.4,3119.7,0.00511581]
[1641910472392,0.462,3120.3,3119.7,0.00511581]
[1641910472585,0.462,3120.3,3118.8,1.2266]
[1641910472586,0.462,3120.3,3119.1,0.00852635]
[1641910472788,0.462,3120.3,3118.9,0.0096632]
[1641910473184,0.462,3120.3,3119.3,1.1624372]
[1641910473585,0.462,3120.3,3119.4,0.00682108]
[1641910473790,0.3454,3120.1,3119.4,0.00682108]
[1641910474091,0.3454,3119.9,3119.4,0.00682108]
[1641910474286,0.3454,3119.7,3119.4,0.00682108]
[1641910474586,0.3454,3119.5,3118.8,0.8018159]
[1641910474788,0.8074,3119.5,3118.8,0.8018159]
[1641910474991,0.8074,3119.5,3119.4,1.09449863]
[1641910475488,0.8074,3119.5,3119.4,1.10131971]
[1641910476138,0.8074,3119.5,3119.4,0.00682108]
[1641910476538,0.8074,3119.5,3118.8,0.8018091]
[1641910476539,0.81622357,3119.5,3118.9,0.0096632]
[1641910476939,0.81622357,3119.5,3119.3,0.76957982]
[1641910477141,0.35422357,3119.5,3119.4,9.56286278]
[1641910477338,0.35422357,3119.5,3119.4,10.52488386]
[1641910477545,0.35422357,3119.5,3119.4,3.17327422]
[1641910477738,0.35422357,3119.5,3119.4,2.87327422]
[1641910478038,0.35422357,3119.5,3119.4,2.07165392]
[1641910478438,0.35422357,3119.5,3119.4,4.31645392]
[1641910481791,0.9624,3119.5,3119.4,4.31645392]
[1641910482791,0.9624,3119.5,3119.4,5.11818652]
[1641910483248,0.9624,3119.5,3119.4,5.41818652]
[1641910483436,0.9624,3119.5,3119.4,8.03369601]
[1641910484438,0.9624,3119.5,3119.4,7.73369601]
[1641910484737,0.9624,3119.5,3119.4,5.11818652]
[1641910485143,0.9624,3119.5,3119.4,3.20682108]
[1641910485738,0.9624,3119.5,3119.4,5.72023074]
[1641910485938,0.9624,3119.5,3119.4,3.20682108]
[1641910486339,0.6176,3119.8,3119.4,3.20682108]
[1641910486739,0.6176,3119.8,3119.5,0.00625266]
[1641910486991,0.6176,3119.8,3119.5,0.80786046]
[1641910487385,0.6176,3119.8,3119.6,0.00568424]
[1641910487790,0.6176,3119.8,3119.5,0.3]
[1641910487791,0.6176,3119.8,3119.5,0.30625266]
[1641910487987,0.6176,3119.8,3119.6,0.00568424]
[1641910488988,0.6176,3119.8,3119.7,4.33127839]
[1641910489191,0.6176,3119.8,3119.6,0.8016007]
[1641910489389,1.26361,3120.8,3119.8,6.8]
[1641910489597,0.80135,3121.8,3119.9,21.42022938]
[1641910489791,0.0079417,3122.0,3120.0,2.40367]
[1641910489792,0.00341054,3120.4,3120.0,2.40367]
[1641910489991,0.0079417,3122.0,3120.1,2.64354632]
[1641910490190,0.00625266,3121.5,3120.1,2.94354632]
[1641910490396,0.00625266,3121.5,3120.8,1.60235]
[1641910490592,0.00568424,3121.4,3120.9,1.37975019]
[1641910490836,0.00568424,3121.4,3121.0,0.80116]
[1641910491037,0.00511581,3121.3,3121.0,0.80116]
[1641910491538,0.00454739,3121.2,3121.0,1.6023]
[1641910491938,0.00397897,3121.1,3121.0,8.53340965]
[1641910492137,0.00397897,3121.1,3121.0,5.78340965]
[1641910492337,0.00397897,3121.1,3121.0,3.2047027]
[1641910492943,0.00269796,3121.1,3121.0,3.2047027]
[1641910493745,0.00269796,3121.1,3120.5,1.229]
[1641910493942,0.07794036,3121.0,3120.6,0.8014274]
[1641910494141,0.00212953,3121.0,3120.6,0.8014274]
[1641910494339,0.9624,3121.1,3120.7,4.23197382]
[1641910494340,0.00156111,3120.9,3120.7,4.23197382]
[1641910494593,0.9624,3121.1,3120.7,1.6026337]
[1641910494992,0.9624,3121.1,3120.8,0.3]
[1641910495190,0.9624,3121.1,3120.9,1.6024349]
[1641910495394,0.9624,3121.1,3121.0,6.39068101]
[1641910495596,0.9624,3121.1,3121.0,2.39068101]
[1641910495790,0.96353685,3121.1,3121.0,2.39068101]
[1641910495992,0.0079417,3122.0,3121.1,3.4]
[1641910496192,0.0079417,3122.0,3121.3,0.80116]
[1641910496391,0.00454738,3121.9,3121.3,0.80116]
[1641910496792,0.00397896,3121.8,3121.3,0.80116]
[1641910497191,0.00341054,3121.7,3121.3,1.10116]
[1641910497392,0.00341054,3121.7,3121.4,1.26991783]
[1641910497595,0.00284211,3121.6,3121.4,1.26991783]
[1641910497893,0.00227369,3121.5,3121.4,1.26991783]
[1641910498097,0.9624,3122.1,3121.4,1.26991783]
[1641910498537,0.00284212,3122.0,3121.4,1.26991783]
[1641910498937,0.00227369,3121.9,3121.4,1.26991783]
[1641910499338,0.00170527,3121.8,3121.4,1.26991783]
[1641910499742,0.00113685,3121.7,3121.4,1.26991783]
[1641910500141,0.00113685,3121.7,3121.3,0.3]
[1641910500340,0.00113685,3121.7,3121.4,3.2]
[1641910501046,0.00113685,3121.7,3121.4,3.5]
[1641910501644,0.00765914,3121.6,3121.5,0.00337232]
[1641910502088,0.00765914,3121.6,3121.4,4.53891631]
[1641910503291,0.00765914,3121.6,3121.4,4.29954399]
[1641910503693,0.00765914,3121.6,3121.4,3.2]
[1641910503892,0.05417096,3121.6,3121.4,3.2]
[1641910504493,0.00765914,3121.6,3121.4,3.2]
[1641910506443,0.00847273,3121.5,3121.4,3.2]
[1641910508244,0.00847273,3121.5,3121.4,5.92216074]
[1641910508846,0.00847273,3121.5,3121.4,3.2]
[1641910509487,0.00847273,3121.5,3121.4,3.96032684]
[1641910509890,0.00847273,3121.5,3121.4,2.51832684]
[1641910510688,0.00847273,3121.5,3121.4,5.24024565]
[1641910511089,0.00847273,3121.5,3121.4,5.17624565]
[1641910512690,0.87087273,3121.6,3121.4,5.17624565]
[1641910513441,0.87087273,3121.6,3121.5,2.72191881]
[1641910514639,0.87087273,3121.6,3121.5,3.10208223]
[1641910515140,0.87087273,3121.6,3121.5,3.48224565]
[1641910518699,8.08287273,3121.6,3121.5,3.48224565]
[1641910518905,0.87087273,3121.2,3120.5,1.62936757]
[1641910519100,0.87087273,3121.2,3120.3,1.62936757]
[1641910519101,0.87087273,3120.6,3120.3,1.62936757]
[1641910519302,1.33287273,3120.6,3120.3,1.62936757]
[1641910519598,1.33287273,3120.6,3120.3,0.18636757]
[1641910519798,2.33287273,3120.6,3120.3,0.18636757]
[1641910520001,2.33287273,3120.6,3120.1,4.0833558]
[1641910520301,0.87087273,3120.4,3120.2,0.00625266]
[1641910520774,0.87087273,3120.4,3120.0,0.0073895]
[1641910521959,0.87087273,3120.1,3120.0,0.0073895]
[1641910522157,0.87087273,3120.1,3119.9,3.136]
[1641910522363,0.87087273,3120.1,3120.0,0.0073895]
[1641910522758,1.33287273,3120.1,3120.0,0.0073895]
[1641910523562,2.93650273,3120.1,3120.0,0.0073895]
[1641910523961,4.23325195,3120.1,3120.0,0.0073895]
[1641910525586,6.75,3120.0,3119.9,3.136]
[1641910525786,6.75,3120.0,3118.4,3.60646032]
[1641910525787,0.87087273,3119.3,3118.4,2.79204]
[1641910525995,0.87087273,3119.1,3118.8,4.0833558]
[1641910526187,0.87087273,3118.9,3118.8,4.0833558]
[1641910526387,1.33287273,3118.9,3118.8,4.0833558]
[1641910526589,0.9624,3118.9,3118.8,1.41770885]
[1641910526792,0.9624,3118.9,3118.8,0.01923347]
[1641910526986,0.9624,3118.9,3118.8,0.00682108]
[1641910527590,8.3509262,3118.9,3118.8,0.00682108]
[1641910527786,9.64750011,3118.9,3118.8,0.00682108]
[1641910527987,10.64750011,3118.9,3118.1,0.01080005]
[1641910528242,10.64750011,3118.9,3117.9,0.0119369]
[1641910528243,0.03835308,3118.6,3117.9,0.0119369]
[1641910528537,0.0396331,3118.4,3117.9,0.0119369]
[1641910528739,1.74139914,3118.2,3117.9,0.0119369]
[1641910528938,1.4244,3118.2,3117.9,0.0119369]
[1641910529140,1.4244,3118.2,3117.8,0.01250532]
[1641910529344,1.4244,3118.2,3117.7,0.01307374]
[1641910529542,2.22667,3118.2,3117.7,0.01307374]
[1641910529838,2.22667,3118.2,3117.4,0.01477901]
[1641910529839,6.16017,3118.2,3117.4,0.01477901]
[1641910530040,6.16017,3118.2,3117.5,0.80219]
[1641910530241,5.3579,3118.2,3117.5,0.80219]
[1641910530442,5.3579,3118.2,3117.6,0.01364217]
[1641910530842,5.3579,3118.2,3117.7,1.21832423]
[1641910531041,5.3579,3118.2,3117.6,1.60413]
[1641910531240,0.00284212,3118.1,3117.8,0.81460532]
[1641910531639,0.0022737,3118.0,3117.8,0.81460532]
[1641910532088,0.00170527,3117.9,3117.8,2.06092154]
[1641910532287,0.00170527,3117.9,3117.8,1.99692154]
[1641910533890,0.00170527,3117.9,3117.8,0.75060532]
[1641910534089,0.00170527,3117.9,3117.8,0.70060532]
[1641910534494,0.00170527,3117.9,3117.8,2.60060532]
[1641910536143,0.8021,3118.7,3117.8,2.90060532]
[1641910536144,0.9624,3118.1,3117.8,2.90060532]
[1641910536341,0.9624,3118.1,3117.8,2.60060532]
[1641910536541,0.96353685,3118.1,3117.8,2.60060532]
[1641910538041,0.96353685,3118.1,3117.8,1.91250532]
[1641910539815,0.96353685,3118.1,3117.8,1.81250532]
[1641910540013,0.01307375,3118.0,3117.9,0.80206]
[1641910540514,0.01307375,3118.0,3117.9,0.73806]
[1641910540917,0.01307375,3118.0,3117.9,2.13293239]
[1641910541118,0.97547375,3118.0,3117.9,4.85639234]
[1641910542115,0.9624,3118.0,3117.9,10.81151995]
[1641910542319,3.7464,3119.6,3118.5,0.80182]
[1641910542517,3.7464,3119.6,3119.0,0.80172]
[1641910542915,3.7464,3119.6,3118.9,1.60344]
[1641910543439,1.0,3119.5,3118.9,2.73857335]
[1641910543840,0.00795793,3119.4,3118.9,2.73857335]
[1641910544240,0.0073895,3119.3,3118.9,2.73857335]
[1641910544642,0.00682108,3119.2,3118.9,2.73857335]
[1641910544946,0.00625266,3119.1,3118.9,2.73857335]
[1641910545241,0.00568423,3119.0,3118.9,2.73857335]
[1641910545441,0.00568423,3119.0,3118.9,5.24696696]
[1641910546241,0.00568423,3119.0,3118.9,5.34658693]
[1641910547394,0.00568423,3119.0,3118.9,8.06926237]
[1641910547997,0.00568423,3119.0,3118.9,5.34658693]
[1641910548198,0.00568423,3119.0,3118.9,5.64658693]
[1641910548598,0.83704404,3120.3,3119.0,6.8]
[1641910548798,3.944,3120.2,3119.6,0.80159]
[1641910548998,3.944,3120.2,3119.5,1.60317]
[1641910549604,3.944,3120.2,3119.7,1.51567252]
[1641910549801,3.944,3120.2,3119.5,1.60317]
[1641910550000,3.944,3120.2,3119.5,1.90317]
[1641910550203,3.944,3120.2,3119.5,1.60317]
[1641910550854,0.8016941,3119.6,3119.1,2.59825826]
[1641910551052,0.8016941,3119.6,3119.0,2.67739029]
[1641910551053,0.04562255,3119.5,3118.9,4.22182414]
[1641910551250,0.04562255,3119.5,3118.9,0.13819997]
[1641910551251,0.04846467,3119.5,3118.9,0.13819997]
[1641910551651,0.04846467,3119.5,3119.0,2.72271752]
[1641910551851,0.00284212,3119.5,3119.0,2.72271752]
[1641910552249,0.00284212,3119.5,3118.9,1.57191284]
[1641910552452,0.00284212,3119.5,3119.0,2.51026998]
[1641910552753,0.00284212,3119.5,3119.0,2.46155043]
[1641910552949,0.00284212,3119.5,3119.0,5.18411211]
[1641910553151,0.00284212,3119.5,3119.0,2.72256168]
[1641910553350,0.00284212,3119.5,3119.0,5.20120732]
[1641910553552,0.00284212,3119.5,3119.0,2.72256168]
[1641910554052,0.00284212,3119.5,3118.9,0.13819997]
[1641910554487,0.00284212,3119.5,3119.1,2.72258077]
[1641910554989,0.00284212,3119.5,3119.0,3.87623242]
[1641910555392,0.00284212,3119.5,3119.1,2.50649191]